[Event "Early-Titled-Tuesday-Blitz-September-12-2023"]
[Site "Chess.com"]
[Date "2023.09.12"]
[Round "4"]
[White "biesiadnik"]
[Black "OK97"]
[Result "0-1"]
[WhiteElo "2570"]
[BlackElo "2822"]
[TimeControl "180+1"]
[EndTime "8:38:29 PDT"]
[Termination "OK97 won by resignation"]

1. e4 {[%clk 0:02:59.8]} 1... c5 {[%clk 0:03:00]} 2. Nf3 {[%clk 0:02:59.6]} 2...
d6 {[%clk 0:03:00.3]} 3. Bb5+ {[%clk 0:02:58.2]} 3... Bd7 {[%clk 0:03:00.1]} 4.
Bxd7+ {[%clk 0:02:58.2]} 4... Nxd7 {[%clk 0:03:01]} 5. O-O {[%clk 0:02:57.8]}
5... Ngf6 {[%clk 0:02:58]} 6. Qe2 {[%clk 0:02:57.8]} 6... e6 {[%clk 0:02:56.6]}
7. c4 {[%clk 0:02:51.4]} 7... Ne5 {[%clk 0:02:53.7]} 8. Nxe5 {[%clk 0:02:45.6]}
8... dxe5 {[%clk 0:02:53.9]} 9. d3 {[%clk 0:02:42.5]} 9... Be7 {[%clk
0:02:49.5]} 10. Be3 {[%clk 0:02:42.3]} 10... O-O {[%clk 0:02:47.2]} 11. Nc3
{[%clk 0:02:41.8]} 11... Nd7 {[%clk 0:02:47.4]} 12. a3 {[%clk 0:02:40.8]} 12...
Nb8 {[%clk 0:02:47.2]} 13. Rfb1 {[%clk 0:02:18.3]} 13... Nc6 {[%clk 0:02:46.7]}
14. Na4 {[%clk 0:02:13.4]} 14... b6 {[%clk 0:02:41.8]} 15. Qd2 {[%clk
0:02:10.6]} 15... Qd7 {[%clk 0:02:00.8]} 16. b4 {[%clk 0:02:10.3]} 16... cxb4
{[%clk 0:01:39.1]} 17. axb4 {[%clk 0:02:09.7]} 17... Rad8 {[%clk 0:01:39.7]} 18.
c5 {[%clk 0:01:43.8]} 18... b5 {[%clk 0:01:00.4]} 19. Nc3 {[%clk 0:01:41.7]}
19... Rb8 {[%clk 0:00:57.1]} 20. Ra6 {[%clk 0:01:24.7]} 20... Rfd8 {[%clk
0:00:57.6]} 21. Ne2 {[%clk 0:01:23.6]} 21... Qc8 {[%clk 0:00:46.8]} 22. Rba1
{[%clk 0:01:18.8]} 22... Rb7 {[%clk 0:00:47.3]} 23. h3 {[%clk 0:00:57.3]} 23...
Rbd7 {[%clk 0:00:47.1]} 24. R1a3 {[%clk 0:00:54.6]} 24... Rxd3 {[%clk
0:00:38.5]} 25. Rxd3 {[%clk 0:00:24.8]} 25... Qxa6 {[%clk 0:00:34.9]} 26. Rxd8+
{[%clk 0:00:24.5]} 26... Bxd8 {[%clk 0:00:24]} 27. Qd7 {[%clk 0:00:24.2]} 27...
Be7 {[%clk 0:00:24.3]} 28. Bg5 {[%clk 0:00:22.2]} 28... Bf8 {[%clk 0:00:21.1]}
29. Kh2 {[%clk 0:00:22.3]} 29... h6 {[%clk 0:00:20.9]} 30. Bh4 {[%clk
0:00:22.5]} 30... Nxb4 {[%clk 0:00:19.4]} 31. Qe8 {[%clk 0:00:18.4]} 31... Qc6
{[%clk 0:00:18.5]} 32. Qb8 {[%clk 0:00:18.2]} 32... Qxc5 {[%clk 0:00:17.8]} 33.
Ng3 {[%clk 0:00:18.4]} 33... Nc6 {[%clk 0:00:15.9]} 34. Qc8 {[%clk 0:00:18.2]}
34... Nd4 {[%clk 0:00:12.6]} 35. Qb8 {[%clk 0:00:16.5]} 35... a5 {[%clk
0:00:09.9]} 36. Nh5 {[%clk 0:00:16.6]} 36... Qd6 {[%clk 0:00:10.3]} 37. Qa8
{[%clk 0:00:15.6]} 37... a4 {[%clk 0:00:09.7]} 38. Bg3 {[%clk 0:00:14.7]} 38...
a3 {[%clk 0:00:08.9]} 39. f4 {[%clk 0:00:14.6]} 39... exf4 {[%clk 0:00:08]} 40.
Bxf4 {[%clk 0:00:15.1]} 40... e5 {[%clk 0:00:08.5]} 41. Bd2 {[%clk 0:00:15.2]}
41... b4 {[%clk 0:00:08.5]} 42. Ng3 {[%clk 0:00:14]} 42... Nf3+ {[%clk
0:00:08.1]} 43. gxf3 {[%clk 0:00:13.7]} 43... Qxd2+ {[%clk 0:00:08.8]} 44. Kh1
{[%clk 0:00:14.5]} 44... Qd1+ {[%clk 0:00:09.2]} 45. Kg2 {[%clk 0:00:14.2]}
45... Qd2+ {[%clk 0:00:09.5]} 0-1

[Event "Early-Titled-Tuesday-Blitz-September-12-2023"]
[Site "Chess.com"]
[Date "2023.09.12"]
[Round "4"]
[White "HrvojeZagreb"]
[Black "guillembaches"]
[Result "1-0"]
[WhiteElo "2277"]
[BlackElo "2524"]
[TimeControl "180+1"]
[EndTime "8:38:29 PDT"]
[Termination "HrvojeZagreb won on time"]

1. f4 {[%clk 0:02:57.5]} 1... d5 {[%clk 0:02:59.2]} 2. b3 {[%clk 0:02:57.3]}
2... Bf5 {[%clk 0:02:55.3]} 3. Bb2 {[%clk 0:02:55.8]} 3... e6 {[%clk 0:02:55.3]}
4. d3 {[%clk 0:02:55.7]} 4... c6 {[%clk 0:02:51.6]} 5. Nd2 {[%clk 0:02:55.1]}
5... Qb6 {[%clk 0:02:48.6]} 6. e4 {[%clk 0:02:43.9]} 6... Bg6 {[%clk 0:02:32.5]}
7. Qe2 {[%clk 0:02:26.3]} 7... Nf6 {[%clk 0:02:23.4]} 8. Bxf6 {[%clk 0:02:15.3]}
8... gxf6 {[%clk 0:02:20.5]} 9. f5 {[%clk 0:02:15.7]} 9... exf5 {[%clk
0:01:36.6]} 10. exf5+ {[%clk 0:02:16.6]} 10... Kd7 {[%clk 0:01:35.8]} 11. fxg6
{[%clk 0:02:11.4]} 11... hxg6 {[%clk 0:01:31.3]} 12. Ngf3 {[%clk 0:02:02.2]}
12... Ba3 {[%clk 0:01:26.8]} 13. Qf2 {[%clk 0:01:54.7]} 13... Qc7 {[%clk
0:00:51.7]} 14. Be2 {[%clk 0:01:44.3]} 14... Na6 {[%clk 0:00:50.2]} 15. O-O
{[%clk 0:01:36.3]} 15... Nb4 {[%clk 0:00:46.7]} 16. Bd1 {[%clk 0:01:28.3]} 16...
Bb2 {[%clk 0:00:26.6]} 17. Rb1 {[%clk 0:01:26.9]} 17... Bc3 {[%clk 0:00:26.8]}
18. a3 {[%clk 0:01:17.4]} 18... Na6 {[%clk 0:00:22.9]} 19. b4 {[%clk 0:01:04.6]}
19... Rae8 {[%clk 0:00:22.5]} 20. Rb3 {[%clk 0:01:01.5]} 20... Be5 {[%clk
0:00:20]} 21. Nxe5+ {[%clk 0:00:59]} 21... Qxe5 {[%clk 0:00:17.6]} 22. Nf3
{[%clk 0:00:50.4]} 22... Qd6 {[%clk 0:00:16]} 23. Qxa7 {[%clk 0:00:44.9]} 23...
Nc7 {[%clk 0:00:15.7]} 24. Qxb7 {[%clk 0:00:36.1]} 24... g5 {[%clk 0:00:14]} 25.
b5 {[%clk 0:00:30.2]} 25... g4 {[%clk 0:00:11.7]} 26. Qxc6+ {[%clk 0:00:29.6]}
26... Qxc6 {[%clk 0:00:11.8]} 27. bxc6+ {[%clk 0:00:30.5]} 27... Kxc6 {[%clk
0:00:12.3]} 28. Nd4+ {[%clk 0:00:29.3]} 28... Kc5 {[%clk 0:00:12.3]} 29. Nf5
{[%clk 0:00:20.8]} 29... Ne6 {[%clk 0:00:12.2]} 30. c3 {[%clk 0:00:18.8]} 30...
Ng5 {[%clk 0:00:12]} 31. Bxg4 {[%clk 0:00:16.9]} 31... Rhg8 {[%clk 0:00:08.2]}
32. d4+ {[%clk 0:00:16.6]} 32... Kc4 {[%clk 0:00:08]} 33. Rfb1 {[%clk
0:00:14.9]} 33... Kd3 {[%clk 0:00:08.3]} 34. Nd6 {[%clk 0:00:13.4]} 34... Ne4
{[%clk 0:00:08.1]} 35. c4+ {[%clk 0:00:12.9]} 35... Kd2 {[%clk 0:00:07.1]} 36.
Nxe4+ {[%clk 0:00:12.1]} 36... dxe4 {[%clk 0:00:07]} 37. R1b2+ {[%clk
0:00:11.2]} 37... Kc1 {[%clk 0:00:07.2]} 38. Bf5 {[%clk 0:00:07.1]} 38... e3
{[%clk 0:00:07.1]} 39. Rc2+ {[%clk 0:00:06.6]} 1-0

[Event "Early-Titled-Tuesday-Blitz-September-12-2023"]
[Site "Chess.com"]
[Date "2023.09.12"]
[Round "4"]
[White "JAN2404"]
[Black "AlexandraSamaganova"]
[Result "0-1"]
[WhiteElo "2014"]
[BlackElo "2297"]
[TimeControl "180+1"]
[EndTime "8:38:29 PDT"]
[Termination "AlexandraSamaganova won on time"]

1. c4 {[%clk 0:03:00.9]} 1... c5 {[%clk 0:02:59.2]} 2. Nf3 {[%clk 0:03:00]} 2...
Nf6 {[%clk 0:02:54.4]} 3. Nc3 {[%clk 0:02:56.1]} 3... e6 {[%clk 0:02:54.4]} 4.
g3 {[%clk 0:02:51.9]} 4... Nc6 {[%clk 0:02:53.9]} 5. Bg2 {[%clk 0:02:50.9]} 5...
d5 {[%clk 0:02:52.7]} 6. cxd5 {[%clk 0:02:43]} 6... exd5 {[%clk 0:02:53.6]} 7.
d4 {[%clk 0:02:42.7]} 7... cxd4 {[%clk 0:02:52.6]} 8. Nxd4 {[%clk 0:02:43.6]}
8... h6 {[%clk 0:02:51.7]} 9. O-O {[%clk 0:02:42.3]} 9... Be7 {[%clk 0:02:47.8]}
10. a3 {[%clk 0:02:30.2]} 10... O-O {[%clk 0:02:44.1]} 11. b4 {[%clk 0:02:29.4]}
11... Bg4 {[%clk 0:02:16.9]} 12. Re1 {[%clk 0:02:06.6]} 12... Qd7 {[%clk
0:02:07.6]} 13. Bf4 {[%clk 0:01:57.9]} 13... Rac8 {[%clk 0:02:00.2]} 14. Rc1
{[%clk 0:01:56.2]} 14... Rfd8 {[%clk 0:01:43]} 15. Nxc6 {[%clk 0:01:26.5]} 15...
bxc6 {[%clk 0:01:39.8]} 16. Qd4 {[%clk 0:01:27]} 16... a5 {[%clk 0:01:32.1]} 17.
Red1 {[%clk 0:01:03.1]} 17... axb4 {[%clk 0:01:26.4]} 18. axb4 {[%clk
0:01:02.1]} 18... Bd6 {[%clk 0:01:01]} 19. f3 {[%clk 0:00:36.7]} 19... Be6
{[%clk 0:00:49.3]} 20. Bxd6 {[%clk 0:00:33.6]} 20... Qxd6 {[%clk 0:00:48.8]} 21.
e4 {[%clk 0:00:34.3]} 21... Qb8 {[%clk 0:00:39.1]} 22. e5 {[%clk 0:00:28.1]}
22... Nd7 {[%clk 0:00:38.9]} 23. Na4 {[%clk 0:00:25.9]} 23... Qxe5 {[%clk
0:00:36]} 24. Nc5 {[%clk 0:00:14.3]} 24... Qxd4+ {[%clk 0:00:28.9]} 25. Rxd4
{[%clk 0:00:15.2]} 25... Ne5 {[%clk 0:00:26]} 26. Re1 {[%clk 0:00:15.3]} 26...
Nc4 {[%clk 0:00:18.5]} 27. Nxe6 {[%clk 0:00:14.9]} 27... fxe6 {[%clk 0:00:19.4]}
28. Rxe6 {[%clk 0:00:15]} 28... Rd6 {[%clk 0:00:13]} 29. Bh3 {[%clk 0:00:13.8]}
29... Rcd8 {[%clk 0:00:08.8]} 30. Re7 {[%clk 0:00:09.6]} 30... Rb8 {[%clk
0:00:04.1]} 31. Rg4 {[%clk 0:00:09.4]} 31... g5 {[%clk 0:00:03.6]} 32. f4 {[%clk
0:00:07.4]} 32... Rg6 {[%clk 0:00:03.6]} 33. f5 {[%clk 0:00:07.5]} 33... Rg7
{[%clk 0:00:03.5]} 34. f6 {[%clk 0:00:07.8]} 34... Rxe7 {[%clk 0:00:03.7]} 35.
fxe7 {[%clk 0:00:08.7]} 35... Kf7 {[%clk 0:00:04.1]} 36. Rd4 {[%clk 0:00:03.3]}
36... Kxe7 {[%clk 0:00:04.5]} 37. Bf1 {[%clk 0:00:02.2]} 37... Nd6 {[%clk
0:00:04.2]} 0-1

[Event "Early-Titled-Tuesday-Blitz-September-12-2023"]
[Site "Chess.com"]
[Date "2023.09.12"]
[Round "4"]
[White "vi_pranav"]
[Black "Andrei_Belozerov"]
[Result "1-0"]
[WhiteElo "2976"]
[BlackElo "2592"]
[TimeControl "180+1"]
[EndTime "8:38:32 PDT"]
[Termination "vi_pranav won by resignation"]

1. Nf3 {[%clk 0:03:00.9]} 1... d5 {[%clk 0:02:58.6]} 2. g3 {[%clk 0:03:01.1]}
2... Bg4 {[%clk 0:02:58.2]} 3. Bg2 {[%clk 0:03:01.5]} 3... Nd7 {[%clk
0:02:58.2]} 4. O-O {[%clk 0:03:02]} 4... Ngf6 {[%clk 0:02:57.5]} 5. d4 {[%clk
0:02:58.9]} 5... e6 {[%clk 0:02:56.9]} 6. c4 {[%clk 0:02:59.3]} 6... c6 {[%clk
0:02:57]} 7. Ne5 {[%clk 0:02:53.5]} 7... Bh5 {[%clk 0:02:47.6]} 8. Nc3 {[%clk
0:02:51.8]} 8... Be7 {[%clk 0:02:46.2]} 9. Bf4 {[%clk 0:02:44.7]} 9... O-O
{[%clk 0:02:44.2]} 10. Qb3 {[%clk 0:02:42.9]} 10... Qb6 {[%clk 0:02:42.3]} 11.
c5 {[%clk 0:02:41.8]} 11... Qa6 {[%clk 0:02:35.1]} 12. Rfe1 {[%clk 0:02:34.9]}
12... Nxe5 {[%clk 0:02:33.7]} 13. Bxe5 {[%clk 0:02:35.8]} 13... b6 {[%clk
0:02:32.1]} 14. cxb6 {[%clk 0:01:49.9]} 14... axb6 {[%clk 0:02:31.2]} 15. e4
{[%clk 0:01:49.6]} 15... Bg6 {[%clk 0:02:18.6]} 16. exd5 {[%clk 0:01:43.4]}
16... Nxd5 {[%clk 0:02:18.5]} 17. Nxd5 {[%clk 0:01:41.5]} 17... cxd5 {[%clk
0:02:18.6]} 18. Bf1 {[%clk 0:01:40.1]} 18... Qb7 {[%clk 0:02:09.1]} 19. Rac1
{[%clk 0:01:38.9]} 19... Rfc8 {[%clk 0:02:08.5]} 20. a3 {[%clk 0:01:32.6]} 20...
h5 {[%clk 0:01:55.8]} 21. h4 {[%clk 0:01:29.3]} 21... Bf5 {[%clk 0:01:48.4]} 22.
Bb5 {[%clk 0:01:22]} 22... Rxc1 {[%clk 0:01:45.1]} 23. Rxc1 {[%clk 0:01:20]}
23... Rc8 {[%clk 0:01:45.4]} 24. Rc3 {[%clk 0:01:19.5]} 24... f6 {[%clk
0:01:09.5]} 25. Bf4 {[%clk 0:01:18.7]} 25... Kf7 {[%clk 0:01:08.6]} 26. Be2
{[%clk 0:01:10.9]} 26... Bg4 {[%clk 0:01:04.8]} 27. Bxg4 {[%clk 0:01:08.7]}
27... hxg4 {[%clk 0:01:05]} 28. Rxc8 {[%clk 0:01:08.4]} 28... Qxc8 {[%clk
0:01:04.5]} 29. Qxb6 {[%clk 0:01:08.2]} 29... Qc2 {[%clk 0:01:01.3]} 30. Be3
{[%clk 0:00:58.3]} 30... Qb1+ {[%clk 0:00:54.2]} 31. Kh2 {[%clk 0:00:58]} 31...
Bxa3 {[%clk 0:00:54.4]} 32. b3 {[%clk 0:00:47.3]} 32... Be7 {[%clk 0:00:45.3]}
33. Qb7 {[%clk 0:00:46.6]} 33... Qb2 {[%clk 0:00:35.1]} 34. Qb8 {[%clk
0:00:44.2]} 34... Qb1 {[%clk 0:00:28.3]} 35. Qb5 {[%clk 0:00:35]} 35... Qb2
{[%clk 0:00:27.9]} 36. Qd3 {[%clk 0:00:27.7]} 36... g6 {[%clk 0:00:24.8]} 37.
Qb5 {[%clk 0:00:20.3]} 37... Qb1 {[%clk 0:00:24.2]} 38. Qb8 {[%clk 0:00:20.2]}
38... Qb2 {[%clk 0:00:24]} 39. Qh8 {[%clk 0:00:20.2]} 39... Qxb3 {[%clk
0:00:22.6]} 40. Qh7+ {[%clk 0:00:19.9]} 40... Ke8 {[%clk 0:00:20.2]} 41. Qxg6+
{[%clk 0:00:20.6]} 41... Kd7 {[%clk 0:00:20.7]} 42. h5 {[%clk 0:00:19.5]} 42...
Qd1 {[%clk 0:00:17.5]} 43. h6 {[%clk 0:00:17.3]} 43... Bb4 {[%clk 0:00:15.4]}
44. h7 {[%clk 0:00:14.8]} 44... Bd2 {[%clk 0:00:15.7]} 45. h8=Q {[%clk 0:00:14]}
45... Bxe3 {[%clk 0:00:16]} 46. Qf7+ {[%clk 0:00:12.7]} 1-0

[Event "Early-Titled-Tuesday-Blitz-September-12-2023"]
[Site "Chess.com"]
[Date "2023.09.12"]
[Round "4"]
[White "Hilary46"]
[Black "Iball95"]
[Result "1-0"]
[WhiteElo "2577"]
[BlackElo "2775"]
[TimeControl "180+1"]
[EndTime "8:38:32 PDT"]
[Termination "Hilary46 won on time"]

1. e4 {[%clk 0:03:00.9]} 1... c5 {[%clk 0:03:00.4]} 2. Nf3 {[%clk 0:03:01.5]}
2... e6 {[%clk 0:03:01]} 3. d4 {[%clk 0:03:02.2]} 3... cxd4 {[%clk 0:03:01.9]}
4. Nxd4 {[%clk 0:03:02.6]} 4... Nf6 {[%clk 0:03:02.8]} 5. Nc3 {[%clk 0:03:02.9]}
5... Nc6 {[%clk 0:03:03.6]} 6. Ndb5 {[%clk 0:03:02.6]} 6... Bc5 {[%clk
0:03:03.5]} 7. Bf4 {[%clk 0:03:00.7]} 7... O-O {[%clk 0:03:03.1]} 8. Bc7 {[%clk
0:03:00.5]} 8... Qe7 {[%clk 0:03:03.2]} 9. Bd6 {[%clk 0:03:00.6]} 9... Bxd6
{[%clk 0:03:03.5]} 10. Qxd6 {[%clk 0:03:01.1]} 10... Qd8 {[%clk 0:03:03.8]} 11.
Nc7 {[%clk 0:02:54.4]} 11... Rb8 {[%clk 0:02:48.9]} 12. Be2 {[%clk 0:02:54.7]}
12... b5 {[%clk 0:02:47.4]} 13. e5 {[%clk 0:02:49.6]} 13... b4 {[%clk
0:02:23.7]} 14. exf6 {[%clk 0:02:48.1]} 14... bxc3 {[%clk 0:02:24.1]} 15. fxg7
{[%clk 0:02:42.1]} 15... Kxg7 {[%clk 0:02:25]} 16. b3 {[%clk 0:02:20.6]} 16...
Qf6 {[%clk 0:02:13.3]} 17. O-O {[%clk 0:02:05.2]} 17... Nd4 {[%clk 0:02:04.3]}
18. Bd3 {[%clk 0:01:58.8]} 18... Rb6 {[%clk 0:02:00.4]} 19. Qg3+ {[%clk
0:01:59.1]} 19... Kh8 {[%clk 0:02:00.1]} 20. Rae1 {[%clk 0:01:42.6]} 20... Rg8
{[%clk 0:01:57.1]} 21. Qh3 {[%clk 0:01:36.9]} 21... Rg7 {[%clk 0:01:56.7]} 22.
Re4 {[%clk 0:01:30.3]} 22... Nf3+ {[%clk 0:01:56.3]} 23. Kh1 {[%clk 0:01:30]}
23... Ng5 {[%clk 0:01:56.2]} 24. Qe3 {[%clk 0:01:07.5]} 24... Nxe4 {[%clk
0:01:18.5]} 25. Ne8 {[%clk 0:01:06.7]} 25... Qg5 {[%clk 0:00:18.4]} 26. Nxg7
{[%clk 0:01:03.7]} 26... Qxe3 {[%clk 0:00:18.4]} 27. fxe3 {[%clk 0:01:03.9]}
27... Kxg7 {[%clk 0:00:18.3]} 28. Bxe4 {[%clk 0:01:04.3]} 28... Ba6 {[%clk
0:00:19]} 29. Rd1 {[%clk 0:01:00.1]} 29... f5 {[%clk 0:00:19.9]} 30. Rxd7+
{[%clk 0:00:58.6]} 30... Kf6 {[%clk 0:00:20.4]} 31. Bf3 {[%clk 0:00:53.9]} 31...
Rb5 {[%clk 0:00:05.5]} 32. Kg1 {[%clk 0:00:49.7]} 32... Re5 {[%clk 0:00:03.3]}
33. Kf2 {[%clk 0:00:49.5]} 33... h5 {[%clk 0:00:02.1]} 34. Rxa7 {[%clk
0:00:46.7]} 34... Bb5 {[%clk 0:00:01.9]} 35. a4 {[%clk 0:00:45.7]} 35... Be8
{[%clk 0:00:02.4]} 36. a5 {[%clk 0:00:41.2]} 36... Rb5 {[%clk 0:00:01.9]} 37. a6
{[%clk 0:00:35.8]} 37... Ra5 {[%clk 0:00:02.2]} 38. Ra8 {[%clk 0:00:33.8]} 38...
Bb5 {[%clk 0:00:01.4]} 39. a7 {[%clk 0:00:32]} 39... Ra2 {[%clk 0:00:02.3]} 40.
Bd1 {[%clk 0:00:19.3]} 40... Ke5 {[%clk 0:00:01.6]} 41. Rb8 {[%clk 0:00:19.2]}
1-0

[Event "Early-Titled-Tuesday-Blitz-September-12-2023"]
[Site "Chess.com"]
[Date "2023.09.12"]
[Round "4"]
[White "ErikRonka"]
[Black "LileKoridze"]
[Result "1-0"]
[WhiteElo "2538"]
[BlackElo "2366"]
[TimeControl "180+1"]
[EndTime "8:38:32 PDT"]
[Termination "ErikRonka won by resignation"]

1. e4 {[%clk 0:03:00.9]} 1... c5 {[%clk 0:02:59.6]} 2. Nf3 {[%clk 0:03:01.3]}
2... d6 {[%clk 0:02:59.3]} 3. d4 {[%clk 0:03:01.9]} 3... cxd4 {[%clk 0:02:58.3]}
4. Nxd4 {[%clk 0:03:02.8]} 4... Nf6 {[%clk 0:02:57.8]} 5. Nc3 {[%clk 0:03:03.4]}
5... a6 {[%clk 0:02:57.5]} 6. Be3 {[%clk 0:03:03.9]} 6... e5 {[%clk 0:02:57.5]}
7. Nb3 {[%clk 0:03:04.4]} 7... Be6 {[%clk 0:02:57]} 8. f3 {[%clk 0:03:04.9]}
8... Nbd7 {[%clk 0:02:57]} 9. Qd2 {[%clk 0:03:05.5]} 9... b5 {[%clk 0:02:56.6]}
10. g4 {[%clk 0:03:06]} 10... Nb6 {[%clk 0:02:55.2]} 11. a4 {[%clk 0:03:05.5]}
11... b4 {[%clk 0:02:54.3]} 12. Nd1 {[%clk 0:03:04.4]} 12... Nc4 {[%clk
0:02:53.2]} 13. Bxc4 {[%clk 0:03:03.9]} 13... Bxc4 {[%clk 0:02:54.1]} 14. g5
{[%clk 0:03:02]} 14... Nd7 {[%clk 0:02:50.6]} 15. Nf2 {[%clk 0:03:02]} 15... a5
{[%clk 0:02:47.6]} 16. O-O-O {[%clk 0:03:01.6]} 16... Qc7 {[%clk 0:02:46]} 17.
Kb1 {[%clk 0:03:01.4]} 17... Qc6 {[%clk 0:02:44.1]} 18. Nc1 {[%clk 0:02:46.4]}
18... Be7 {[%clk 0:02:04.9]} 19. h4 {[%clk 0:02:45.1]} 19... Nb6 {[%clk
0:01:59.3]} 20. b3 {[%clk 0:02:44.3]} 20... Be6 {[%clk 0:01:59]} 21. h5 {[%clk
0:02:20.5]} 21... Rd8 {[%clk 0:01:30.4]} 22. Nfd3 {[%clk 0:02:14.2]} 22... Qc7
{[%clk 0:01:27.5]} 23. Qf2 {[%clk 0:02:07.5]} 23... Nd7 {[%clk 0:01:19.1]} 24.
g6 {[%clk 0:02:02.4]} 24... h6 {[%clk 0:01:14.3]} 25. gxf7+ {[%clk 0:02:00.9]}
25... Bxf7 {[%clk 0:01:14]} 26. f4 {[%clk 0:01:59.6]} 26... exf4 {[%clk
0:01:10.1]} 27. Nxf4 {[%clk 0:01:42.6]} 27... Bf6 {[%clk 0:00:52]} 28. Bd4
{[%clk 0:01:32.4]} 28... Ne5 {[%clk 0:00:49.4]} 29. Bb6 {[%clk 0:00:47.1]} 29...
Qc3 {[%clk 0:00:16.3]} 30. Nce2 {[%clk 0:00:46.8]} 30... Qc8 {[%clk 0:00:11.6]}
31. Bxd8 {[%clk 0:00:45.3]} 31... Qxd8 {[%clk 0:00:12.5]} 32. Nd4 {[%clk
0:00:42.1]} 32... Qc8 {[%clk 0:00:10.3]} 33. Nf5 {[%clk 0:00:16.5]} 33... O-O
{[%clk 0:00:08.1]} 34. Qg3 {[%clk 0:00:15.8]} 34... Kh7 {[%clk 0:00:06.9]} 35.
Rhg1 {[%clk 0:00:14.7]} 35... Bg5 {[%clk 0:00:04.2]} 36. Nd5 {[%clk 0:00:13.7]}
36... Bxd5 {[%clk 0:00:03.7]} 37. Rxd5 {[%clk 0:00:14.4]} 37... Qc6 {[%clk
0:00:01.4]} 38. Rgd1 {[%clk 0:00:11.8]} 38... Qb6 {[%clk 0:00:01.6]} 39. Qg1
{[%clk 0:00:10.3]} 39... Qxg1 {[%clk 0:00:01.6]} 40. Rxg1 {[%clk 0:00:10]} 40...
Rxf5 {[%clk 0:00:02.5]} 41. exf5 {[%clk 0:00:09.9]} 1-0

[Event "Early-Titled-Tuesday-Blitz-September-12-2023"]
[Site "Chess.com"]
[Date "2023.09.12"]
[Round "4"]
[White "Arash_Tahbaz"]
[Black "Andreikka"]
[Result "0-1"]
[WhiteElo "2832"]
[BlackElo "3006"]
[TimeControl "180+1"]
[EndTime "8:38:34 PDT"]
[Termination "Andreikka won by resignation"]

1. Nf3 {[%clk 0:03:00.9]} 1... Nf6 {[%clk 0:02:54.3]} 2. g3 {[%clk 0:03:00.8]}
2... b5 {[%clk 0:02:53.9]} 3. Bg2 {[%clk 0:03:01.7]} 3... Bb7 {[%clk 0:02:51.9]}
4. O-O {[%clk 0:03:00.4]} 4... g6 {[%clk 0:02:52.2]} 5. d3 {[%clk 0:03:00.4]}
5... Bg7 {[%clk 0:02:51.2]} 6. e4 {[%clk 0:03:01.1]} 6... O-O {[%clk 0:02:50.6]}
7. Nfd2 {[%clk 0:02:59.8]} 7... e5 {[%clk 0:02:36.3]} 8. f4 {[%clk 0:02:58.6]}
8... d6 {[%clk 0:02:33.7]} 9. Nf3 {[%clk 0:02:32.4]} 9... c5 {[%clk 0:02:14.8]}
10. Nc3 {[%clk 0:02:26.7]} 10... b4 {[%clk 0:02:09.8]} 11. Ne2 {[%clk
0:02:26.7]} 11... Nc6 {[%clk 0:02:05]} 12. h3 {[%clk 0:02:24.7]} 12... exf4
{[%clk 0:02:00]} 13. Nxf4 {[%clk 0:01:53.5]} 13... a5 {[%clk 0:01:46.8]} 14. g4
{[%clk 0:01:48.4]} 14... Nd7 {[%clk 0:01:41.3]} 15. Nd5 {[%clk 0:01:48.1]} 15...
Nde5 {[%clk 0:01:36]} 16. Nxe5 {[%clk 0:01:40.5]} 16... Nxe5 {[%clk 0:01:35.7]}
17. Bf4 {[%clk 0:01:41.2]} 17... Bxd5 {[%clk 0:01:31.5]} 18. exd5 {[%clk
0:01:42.1]} 18... a4 {[%clk 0:01:28.7]} 19. Qd2 {[%clk 0:01:30.8]} 19... Re8
{[%clk 0:01:22.3]} 20. a3 {[%clk 0:01:25.3]} 20... bxa3 {[%clk 0:01:05.2]} 21.
Rxa3 {[%clk 0:01:24.8]} 21... Qb6 {[%clk 0:01:05.4]} 22. c3 {[%clk 0:01:23.7]}
22... Nxd3 {[%clk 0:01:02.6]} 23. Ra2 {[%clk 0:01:13.4]} 23... c4+ {[%clk
0:00:59.3]} 24. Kh1 {[%clk 0:01:13.3]} 24... Qc5 {[%clk 0:00:49.2]} 25. Bh2
{[%clk 0:01:08.9]} 25... Be5 {[%clk 0:00:40.8]} 26. Bg1 {[%clk 0:01:09]} 26...
Qb5 {[%clk 0:00:40.9]} 27. Rfa1 {[%clk 0:01:05.1]} 27... Qb3 {[%clk 0:00:30.2]}
28. Bf3 {[%clk 0:01:03.5]} 28... Bf4 {[%clk 0:00:19.2]} 29. Qd1 {[%clk
0:00:49.6]} 29... Re1 {[%clk 0:00:17]} 30. Qxb3 {[%clk 0:00:39.2]} 30... cxb3
{[%clk 0:00:17.9]} 31. Ra3 {[%clk 0:00:37.8]} 31... Rxa1 {[%clk 0:00:17.8]} 32.
Rxa1 {[%clk 0:00:38.7]} 32... Nxb2 {[%clk 0:00:17.7]} 33. Be2 {[%clk 0:00:39.3]}
33... Be5 {[%clk 0:00:16.3]} 34. Ra3 {[%clk 0:00:14.6]} 34... Bxc3 {[%clk
0:00:15.2]} 35. Bb5 {[%clk 0:00:15.1]} 35... Bb4 {[%clk 0:00:14.3]} 36. Ra1
{[%clk 0:00:14.8]} 36... a3 {[%clk 0:00:14.6]} 37. Bd4 {[%clk 0:00:14.9]} 37...
Rc8 {[%clk 0:00:09.9]} 38. Bc6 {[%clk 0:00:13.4]} 38... Nc4 {[%clk 0:00:08.8]}
39. Bd7 {[%clk 0:00:08]} 39... Rc7 {[%clk 0:00:08.4]} 40. Bb5 {[%clk 0:00:08.1]}
40... b2 {[%clk 0:00:07.3]} 41. Re1 {[%clk 0:00:08.2]} 41... Bxe1 {[%clk
0:00:04.1]} 0-1